Cogmind - Beta 17 @@@ ROGUE MODE // 2026.07.16 @ 20:46:10 Player: Sadani Result: Destroyed by as-96056 with Assembled Heavy Rifle Performance ------------- Evolutions (0) 0 Regions Visited (2) 400 Robots Destroyed (11) 55 Value Destroyed (133) 133 Prototype IDs (0) 0 Alien Tech Used (0) 0 Bonus (0) 0 TOTAL SCORE: 588 Bonus ------- None Cogmind --------- Core Integrity 0/250 Matter 300/300 Energy 47/100 System Corruption 2% Temperature Warning (362) Movement Core (800) Ox15 Location -10/Mines Parts ------- > --- POWER (1) -------- (None) > --- PROPULSION (2) --- (None) > --- UTILITY (2) ------ High-capacity Storage Unit Signal Interpreter > --- WEAPON (2) ------- Heavy Particle Cannon > --- INVENTORY (20) --- Light Ion Engine Wheel Compact Wheel Armored Wheel Armored Wheel Armored Wheel Small Storage Unit Large Storage Unit Weapon Shielding Heavy Armor Plating Improved Trap Extractor (0/6) Beam Rifle Beam Rifle Beam Rifle Light Assault Rifle Light Assault Rifle Rocket Launcher Mining Laser Peak State ------------ > --- POWER ------------ Light Ion Engine > --- PROPULSION ------- Wheel Armored Wheel > --- UTILITY ---------- High-capacity Storage Unit Signal Interpreter > --- WEAPON ----------- Heavy Particle Cannon Improved Grenade Launcher > --- INVENTORY -------- Light Ion Engine Wheel Compact Wheel Armored Wheel Armored Wheel Armored Wheel Small Storage Unit Large Storage Unit Weapon Shielding Heavy Armor Plating Improved Trap Extractor Beam Rifle Beam Rifle Beam Rifle Beam Rifle Light Assault Rifle Light Assault Rifle Rocket Launcher Mining Laser [Rating: 15] Favorites ----------- Power Light Ion Engine Engine Light Ion Engine Propulsion Armored Wheel Leg Aluminum Leg Wheel Armored Wheel Utility High-capacity Storage Unit Storage High-capacity Storage Unit Processor Signal Interpreter Protection Weapon Shielding Weapon Light Assault Rifle Energy Gun Beam Rifle Energy Cannon Heavy Particle Cannon Ballistic Gun Light Assault Rifle Launcher Improved Grenade Launcher Build | -11 -10 -10 ------- Run | Yrd Mat Min Slots Evolved . | . . . Power . | . . . Propulsion . | . . . Utility . | . . . Weapon . | . . . Parts Attached 20 | 6 7 7 Power 2 | 1 . 1 Engine 2 | 1 . 1 Core . | . . . Reactor . | . . . Propulsion 6 | 2 3 1 Treads . | . . . Leg 2 | 2 . . Wheel 4 | . 3 1 Hover . | . . . Flight . | . . . Utility 5 | 1 3 1 Device . | . . . Storage 3 | 1 2 . Processor 1 | . . 1 Hackware . | . . . Protection 1 | . 1 . Artifact . | . . . Weapon 7 | 2 1 4 Energy Gun 3 | 1 1 1 Energy Cannon 1 | . . 1 Ballistic Gun 2 | 1 . 1 Ballistic Cannon . | . . . Launcher 1 | . . 1 Special Weapon . | . . . Impact Weapon . | . . . Slashing Weapon . | . . . Piercing Weapon . | . . . Special Melee Weapon . | . . . Unidentified Prototypes . | . . . Parts Lost 6 | . . 6 Power 2 | . . 2 Propulsion 2 | . . 2 Utility . | . . . Weapon 2 | . . 2 Highest Loss Streak 5 | . . 5 To Critical Strikes . | . . . Average Backups 13 | 1 12 17 Power . | . 1 . Propulsion 4 | . 4 5 Utility 2 | . 1 3 Weapon 5 | . 5 7 Tool/Special . | . . . Unused Backups 15 | . 2 13 Power 1 | . . 1 Propulsion 6 | . 2 4 Utility 2 | . . 2 Weapon 6 | . . 6 Tool/Special . | . . . Average Slot Usage (%) 96 | . 95 96 Engine 13 | . 14 12 Leg 3 | . 5 . Wheel 24 | . 22 27 Storage 14 | . 14 14 Processor 2 | . . 6 Protection 9 | . 10 7 Energy Gun 13 | . 14 13 Energy Cannon 1 | . . 3 Ballistic Gun 12 | . 14 10 Peak Build Rating 15 | 6 11 15 Average Rating 10 | 4 9 11 On Entrance 5 | . 6 11 Avg Prop Armor Cover (%) 6 | 11 6 . Naked Turns . | . . . Heaviest Build 55 | 10 48 55 Greatest Support 24 | 20 24 22 Greatest Overweight (x) 3 | 3 3 2 Average Overweight (x) 1 | . 1 2 Largest Inventory Capacity 20 | 8 20 20 Average Capacity 17 | 7 16 20 Most Carried 20 | 2 17 20 Average Carried 13 | 1 12 17 Final Capacity 20 | 8 20 20 Final Carried 19 | 2 17 19 Class Distribution -------------------- 100% | Mutant Dominant Class ---------------- Mutant | -10/Materials Mutant | -10/Mines Resources | -11 -10 -10 ----------- Run | Yrd Mat Min Matter Collected 423 | 242 91 90 Remotely . | . . . Salvage Created 271 | . 166 105 Parts 28 | . 17 11 Haulers Intercepted 1 | . 1 . Recyclers Shooed . | . . . Parts Field Recycled . | . . . Retrieved Matter . | . . . Parts Self-Destructed . | . . . Prevented . | . . . Parts Restored . | . . . Kills | -11 -10 -10 ------- Run | Yrd Mat Min Combat Hostiles Destroyed 15 | . 4 11 Guns 9 | . 4 5 AOE 6 | . . 6 Classes Destroyed 5 | . 4 1 Tunneler 1 | . 1 . Hauler 1 | . 1 . Swarmer 8 | . 3 5 Grunt 1 | . 1 . Assembled 6 | . . 6 Best Kill Streak 6 | . 3 6 Combat Bots Only 6 | . 3 6 Max Kills in Single Turn 6 | . 2 6 Gunslinging 1 | . 1 . Exploded 6 | . . 6 Melee . | . . . Uniques/NPCs Destroyed . | . . . Combat | -11 -10 -10 -------- Run | Yrd Mat Min Hostile Shots Fired 52 | . 10 42 Missed 8 | . 5 3 Hits 44 | . 5 39 Projectile 44 | . 5 39 AOE 13 | . . 13 Damage Taken 861 | . 40 821 Core 254 | . . 254 Absorbed by Shields . | . . . Redirected to Shielding 2 | . . 2 Core Remaining (%) 100 | 100 . . Volleys Fired 34 | . 12 22 Largest 2 | . 2 2 Hottest 131 | . 76 131 Shots Fired 64 | . 24 40 Gun 56 | . 24 32 Cannon 7 | . . 7 Launcher 1 | . . 1 Special . | . . . Kinetic 27 | . 13 14 Thermal 36 | . 11 25 Explosive 1 | . . 1 Electromagnetic . | . . . Robot Hit Streak 7 | . 7 5 Robot Miss Streak 5 | . 3 5 Penetration Max . | . . . Secondary Targets 1 | . 1 . Max Gunslinging Chain 1 | . 1 . Shots Hit Robots 37 | . 16 21 Core Hits 26 | 1 9 16 Critical Kills . | . . . Critical Parts Destroyed . | . . . Critical Strikes 5 | . 2 3 Burn 5 | . 2 3 Melee Attacks . | . . . Impact . | . . . Slashing . | . . . Piercing . | . . . Sneak Attacks . | . . . Combat Hostiles . | . . . Follow-up Attacks . | . . . Damage Inflicted 792 | 1 190 601 Guns 430 | . 190 240 Cannons 25 | . . 25 Explosions 336 | . . 336 Melee . | . . . Ramming 1 | 1 . . Kinetic 125 | . 67 58 Thermal 330 | . 123 207 Explosive 336 | . . 336 Electromagnetic . | . . . Impact . | . . . Slashing . | . . . Piercing . | . . . Highest Corruption 2 | . 2 2 Average Corruption 2 | . 2 2 Corruption Purged . | . . . Corruption Blocked . | . . . Effects 4 | . 1 3 Message Errors 2 | . . 2 Heat Flow Errors 1 | . . 1 Misfires 1 | . 1 . Overload Shots . | . . . Overflow Damage 5 | . . 5 Projectiles 5 | . . 5 Explosions . | . . . Melee . | . . . Knockbacks . | . . . Impact . | . . . Kinetic . | . . . Secondary . | . . . Self-Inflicted Damage 2 | . . 2 Shots 1 | . . 1 Rammed . | . . . Targets Rammed 1 | 1 . . Kicked 1 | 1 . . Crushed . | . . . Highest Temperature 362 | . 132 362 Average Temperature 95 | . 51 116 Received Heat Transfer 29 | . . 29 Siege Activations . | . . . Martial Activations . | . . . Shielding Activations . | . . . Robots Disrupted . | . . . Combat Hostiles . | . . . Robots Corrupted . | . . . Combat Hostiles . | . . . Parts Fried . | . . . Impact Corruptions . | . . . Robots Melted . | . . . Combat Hostiles . | . . . Parts Melted 1 | . 1 . Heat Transferred 1160 | . 457 703 Parts Sabotaged . | . . . Parts Stolen . | . . . Parts Stripped . | . . . Power Chain Reactions . | . . . Alert | -11 -10 -10 ------- Run | Yrd Mat Min Maximum Alert Level . | . . . Low Security (%) 100 | 100 100 100 Level 1 . | . . . Level 2 . | . . . Level 3 . | . . . Level 4 . | . . . Level 5 . | . . . High Security . | . . . Max Security . | . . . Peak Influence 85 | . 85 75 Initial . | . . . Average 29 | . 30 33 Influence Increases 334 | . 167 167 Destroy 0b10 Robot/C 180 | . 80 100 Destroy 0b10 Robot/NC 10 | . 10 . Destroy Leader 42 | . 22 20 Successful Hack 10 | . 10 . Select Force Hacks 30 | . 30 . Disable Machine 15 | . . 15 Destroy Structure 17 | . . 17 Lose Combat Pursuer 30 | . 15 15 Influence Decreases 334 | . 166 168 Entered New Map 1 | . . 1 Time Decay 301 | . 166 135 Lost Part 32 | . . 32 Squads Dispatched 2 | . 2 . Investigation 1 | . 1 . Extermination . | . . . Reinforcement 1 | . 1 . Assault . | . . . Garrison . | . . . Intercept . | . . . Searches Triggered . | . . . Construction Impeded . | . . . Haulers Reinforced . | . . . Active Scanning Responses . | . . . Cargo Convoy Interrupts . | . . . Stealth | -11 -10 -10 --------- Run | Yrd Mat Min Distress Signals . | . . . Communications Jammed . | . . . Distress Signals . | . . . Times Spotted 34 | . 7 27 Peak Tracking Total 20 | . 3 20 Tactical Retreats 2 | . 1 1 Traps | -11 -10 -10 ------- Run | Yrd Mat Min Traps Triggered 1 | . 1 . Indirectly . | . . . Trap Hack Attempts . | . . . Triggered . | . . . Disarmed . | . . . Reprogrammed . | . . . Reused . | . . . Traps Extracted . | . . . Installed . | . . . Triggered . | . . . Machines | -11 -10 -10 ---------- Run | Yrd Mat Min Machines Disabled 1 | . . 1 Max in Single Turn 1 | . . 1 Machines Repaired . | . . . Machines Dismantled . | . . . Machines Sabotaged . | . . . Overloaded Fab Kills . | . . . Hacking | -11 -10 -10 --------- Run | Yrd Mat Min Machines Accessed 4 | . 3 1 Terminals 2 | . 2 . Fabricators . | . . . Repair Stations . | . . . Recycling Units 1 | . 1 . Scanalyzers . | . . . Garrison Access . | . . . Total Hacks 12 | . 11 1 Successful 7 | . 6 1 Failed 5 | . 5 . Catastrophic . | . . . Database Lockouts . | . . . Manual 5 | . 5 . Terminals 9 | . 9 . Fabricators . | . . . Repair Stations . | . . . Recycling Units 2 | . 2 . Scanalyzers . | . . . Garrison Access . | . . . Terminal Hacks 6 | . 5 1 Robot Analysis 3 | . 3 . Open Door 1 | . . 1 Registered Components 1 | . 1 . Zone Layout 1 | . 1 . Fabricator Hacks . | . . . Repair Station Hacks . | . . . Recycling Unit Hacks . | . . . Scanalyzer . | . . . Garrison Access Hacks . | . . . Unauthorized Hacks 1 | . 1 . Terminals . | . . . Fabricators . | . . . Repair Stations . | . . . Recycling Units 1 | . 1 . Tunnel 1 | . 1 . Scanalyzers . | . . . Garrison Access . | . . . Data Cores Recovered . | . . . Used . | . . . Hacking Detections 2 | . 2 . Full Trace Events . | . . . Feedback Events . | . . . Feedback Blocked . | . . . Robot Schematics Acquired . | . . . Robots Built . | . . . Authchips . | . . . Time . | . . . Total Robot Build Rating . | . . . Part Schematics Acquired . | . . . Parts Built . | . . . Authchips . | . . . Time . | . . . Total Part Build Rating . | . . . Part Studies Acquired . | . . . Parts Repaired . | . . . Time . | . . . Parts Recycled . | . . . Recycled Matter . | . . . Retrieved Matter . | . . . Retrieved Components . | . . . Parts Scanalyzed . | . . . Part Schematics Acquired . | . . . Parts Damaged . | . . . Bothacking | -11 -10 -10 ------------ Run | Yrd Mat Min Used RIF Installer . | . . . Robots Hacked . | . . . Non-combat . | . . . Combat . | . . . Robot Hacks Applied . | . . . Relay Couplers Released . | . . . Fabnet Peak Effective % . | . . . Robots Rewired . | . . . Allies Hacked . | . . . Hacks Repelled . | . . . Allies | -11 -10 -10 -------- Run | Yrd Mat Min Total Allies . | . . . Largest Group . | . . . Highest-Rated Group . | . . . Highest-Rated Ally . | . . . Total Orders . | . . . Ally Attacks . | . . . Total Damage . | . . . Kills . | . . . Allies Corrupted . | . . . Allies Melted . | . . . Intel | -11 -10 -10 ------- Run | Yrd Mat Min Active Infowar (turns) . | . . . Robot Analysis Total 3 | . 3 . Derelict Logs Recovered 2 | . . 2 Drone Launches . | . . . Drone Recoveries . | . . . Exploration | -11 -10 -10 ------------- Run | Yrd Mat Min Turns Passed 799 | 57 431 311 Spaces Moved 552 | 37 313 202 Core 18 | 18 . . Treads . | . . . Legs 62 | 19 43 . Wheels 472 | . 270 202 Hover . | . . . Flight . | . . . Fastest Speed 50 | 50 90 115 Average Speed 116 | 123 116 115 Slowest Speed 200 | 200 135 115 Overloaded Moves . | . . . Propulsion Burnouts . | . . . Robots Hopped . | . . . Potential Cave-ins . | . . . Cave-ins Triggered . | . . . Exploration Rate (%) 39 | 4 69 44 Regions Visited 2 Branch Regions 1 Pre-discovered Areas 1 | . 1 . Known Exits Taken . | . . . Unknown Exits Taken 2 | 1 1 . Scrap Searched . | . . . Spaces Dug . | . . . Terrain Destroyed 20 | . . 20 Melee . | . . . Projectile 6 | . . 6 AOE 14 | . . 14 Terrain Rammed . | . . . Walls Destroyed . | . . . Machines Disabled . | . . . Actions | -11 -10 -10 --------- Run | Yrd Mat Min Total 647 | 45 357 245 Wait 7 | . 4 3 Move 550 | 36 312 202 Hop . | . . . Pick Up 21 | 2 14 5 Fast Attach 12 | 6 5 1 Attach 3 | . . 3 Detach 6 | . 4 2 Swap 5 | . 2 3 Drop 8 | . 4 4 Fire 34 | . 12 22 Melee . | . . . Ram . | . . . Kick 1 | 1 . . Crush . | . . . Escape Stasis . | . . . Rewire . | . . . Trap . | . . . Miscellaneous . | . . . Route ------- -11/Scrapyard -10/Materials (discovered 3 exits: *Mat / *Min x2) -10/Mines (discovered 2 exits: *Mat x2) History --------- Turn | Location | Event 8 | -11/Scrapyard | Discovered new exit (range 16) 58 | -11/Scrapyard | Entered Materials 59 | -10/Materials | Met a group of wandering Federalists 300 | -10/Materials | Discovered new exit (range 8) 310 | -10/Materials | Build established: Mutant 356 | -10/Materials | Discovered new exit (range 3) 464 | -10/Materials | Discovered new exit (range 6) 489 | -10/Materials | Entered Mines 557 | -10/Mines | Received a Rocket Launcher from a helpful Derelict 615 | -10/Mines | Learned Materials emergency access door positions 644 | -10/Mines | Discovered new exit (range 14) 652 | -10/Mines | Identified exit to Materials 722 | -10/Mines | Met a Derelict who couldn't figure out how to use a Trap Extractor 755 | -10/Mines | Assembled infested the area 760 | -10/Mines | Assisted by a Guerilla fighting off Assembled 791 | -10/Mines | Core integrity fell below 50% 797 | -10/Mines | Core integrity fell below 20% 800 | -10/Mines | Destroyed by as-96056 with Assembled Heavy Rifle Last Messages --------------- 00784_ as-42625 destroyed. 00784_ as-22922 destroyed. 00786_ Imp. Grenade Launcher destroyed. 00786_ as-80343 destroyed. 00786_ as-21782 destroyed. 00786_ as-14686 destroyed. 00787_ The unstable cave ceiling collapses. 00788_ KP-JK2(g) destroyed. 00789_ D-53 Grenadier suffers critical hit (Burn). 00790_ Wheel destroyed. 00790_ as-53881 destroyed. 00790_ Lgt. Ion Engine destroyed. 00790_ Arm. Wheel destroyed. 00792_ D-53 Grenadier destroyed. 00794_ The unstable cave ceiling collapses. 00795_ Destroyed Lgt. Deuterium Engine. 00798_ Destroyed Shock Absorption System. 00798_ Beam Rifle destroyed. 00798_ D-53 Grenadier destroyed. Map ----- +----------------------------------------------------+ | ?????????????????????????????????????????????????? | | ?????????????????????????????????????????????????? | | ?????????????????????????????????????????????????? | | ?????????????????????????????????????????????????? | | ??????""?????????????????????????????? %????????? | | """????????????????????????????? % ???????? | | ????????????????????????%= ???????? | | ###?????????????????????????????## ???????? | | ???????????????????????????####??#" #?????????? | | ??????????????????????????## ### #??????????? | | ??????????????????????????# %]! #???????????? | | ???????????????????????????# = *%= #???????????? | | ???????????????????????????# !|%! #????????????? | | ???????????????????????##### %=* ##????????????? | | ?????????????????????#### ##?????????????? | | ?????????????????????# % ##??????????????? | | ?????????????????????# % ##???????????????? | | ?????????????????????# ###???????????????? | | ????????????????????## ##;#???????????????? | | ######???????????#??# # #????????????????? | | # ##????????### ## #?????????????????? | | ##???????# # #??????????????????? | | ##??????# ! #??????????????????? | | ##?????# [[= #??????????????????? | | ## ##????# [ #??????????????????? | | ?## ###??# !] X @ #####???????????????? | | ??##### ##?# #???????????????? | | ??????## ###### # ## #???????????????? | | ???????## ######## ###=#???????????????? | | ????????## ### #;## ###?????????????? | | ?????????## ##### #?###### r =* #?????????????? | | ?????????# ##??## #????## #### #?????????????? | | ?????????# #?### ###### #??? #?????????????? | | ?????????# ### #????#?????????????? | | ?????????# ## ### ##??????????????????? | | ?????????# ## ##?# #???????????????????? | | ?????????# ## < ##?## ##???????????????????? | | ?????????# ### ##?#####????????????????????? | | ??